[Event "*** SCC Grand Prix: Titled Tuesday Blitz"]
[Site "Chess.com"]
[Date "2020.09.29"]
[Round "1"]
[White "Alexander_Moskalenko"]
[Black "Rubinstein_Akiba"]
[Result "1-0"]
[WhiteElo "2829"]
[BlackElo "2407"]
[TimeControl "180+1"]
[EndTime "10:06:50 PDT"]
[Termination "Alexander_Moskalenko won by resignation"]

1. b3 {[%clk 0:02:02]} 1... e5 {[%clk 0:02:57.4]} 2. Bb2 {[%clk 0:02:00.6]} 2...
Nc6 {[%clk 0:02:56.6]} 3. e3 {[%clk 0:02:01.5]} 3... Nf6 {[%clk 0:02:56.5]} 4.
Bb5 {[%clk 0:02:00.9]} 4... Bd6 {[%clk 0:02:55.6]} 5. Na3 {[%clk 0:02:00]} 5...
Na5 {[%clk 0:02:52.9]} 6. Nc4 {[%clk 0:01:54.3]} 6... Nxc4 {[%clk 0:02:51.3]} 7.
Bxc4 {[%clk 0:01:55.2]} 7... O-O {[%clk 0:02:51.2]} 8. Nf3 {[%clk 0:01:50.8]}
8... Qe7 {[%clk 0:02:50.4]} 9. O-O {[%clk 0:01:50.3]} 9... c6 {[%clk 0:02:50.1]}
10. a4 {[%clk 0:01:48.7]} 10... Bc7 {[%clk 0:02:50]} 11. Ba3 {[%clk 0:01:48.9]}
11... d6 {[%clk 0:02:49.1]} 12. d4 {[%clk 0:01:48.1]} 12... e4 {[%clk
0:02:46.9]} 13. Nd2 {[%clk 0:01:48.4]} 13... Be6 {[%clk 0:02:47.4]} 14. Bxe6
{[%clk 0:01:46]} 14... Qxe6 {[%clk 0:02:48.3]} 15. c4 {[%clk 0:01:43.2]} 15...
Rfe8 {[%clk 0:02:48.3]} 16. h3 {[%clk 0:01:42.1]} 16... d5 {[%clk 0:02:48.3]}
17. Rc1 {[%clk 0:01:41.4]} 17... Bd6 {[%clk 0:02:44.3]} 18. Bxd6 {[%clk
0:01:40.5]} 18... Qxd6 {[%clk 0:02:45.2]} 19. c5 {[%clk 0:01:41.4]} 19... Qd7
{[%clk 0:02:43.3]} 20. b4 {[%clk 0:01:41.9]} 20... Re6 {[%clk 0:02:31.2]} 21.
Rb1 {[%clk 0:01:40.8]} 21... Ne8 {[%clk 0:02:30.9]} 22. b5 {[%clk 0:01:41.1]}
22... Rg6 {[%clk 0:02:31.2]} 23. Kh1 {[%clk 0:01:41]} 23... a6 {[%clk
0:02:16.7]} 24. bxc6 {[%clk 0:01:39.9]} 24... Rxc6 {[%clk 0:02:15.9]} 25. Rb4
{[%clk 0:01:32.7]} 25... Rac8 {[%clk 0:02:12.9]} 26. Qg4 {[%clk 0:01:29.9]}
26... Qxg4 {[%clk 0:02:06.2]} 27. hxg4 {[%clk 0:01:30.8]} 27... R8c7 {[%clk
0:02:05.9]} 28. Rfb1 {[%clk 0:01:29.3]} 28... h6 {[%clk 0:01:56.5]} 29. Rxb7
{[%clk 0:01:28.6]} 29... Nf6 {[%clk 0:01:57]} 30. f3 {[%clk 0:01:25.9]} 30...
exf3 {[%clk 0:01:56.2]} 31. gxf3 {[%clk 0:01:26.8]} 31... Kh7 {[%clk 0:01:53.4]}
32. Kg2 {[%clk 0:01:26.1]} 32... Nd7 {[%clk 0:01:49.7]} 33. a5 {[%clk
0:01:23.6]} 33... Nf8 {[%clk 0:01:44.8]} 34. Rxc7 {[%clk 0:01:21.7]} 34... Rxc7
{[%clk 0:01:43.4]} 35. Rb6 {[%clk 0:01:22.6]} 35... Ra7 {[%clk 0:01:43.7]} 36.
Nb1 {[%clk 0:01:21.8]} 36... Ne6 {[%clk 0:01:43.9]} 37. Nc3 {[%clk 0:01:21.9]}
37... Nc7 {[%clk 0:01:44.4]} 38. Kf2 {[%clk 0:01:18.6]} 38... g6 {[%clk
0:01:43.2]} 39. e4 {[%clk 0:01:18.9]} 39... dxe4 {[%clk 0:01:42.3]} 40. fxe4
{[%clk 0:01:19.8]} 40... Ne6 {[%clk 0:01:42.7]} 41. Ke3 {[%clk 0:01:19.6]} 41...
Rd7 {[%clk 0:01:42.2]} 42. Nd5 {[%clk 0:01:20.2]} 42... Kg7 {[%clk 0:01:40.6]}
43. Rxa6 {[%clk 0:01:19.8]} 43... h5 {[%clk 0:01:38.5]} 44. gxh5 {[%clk
0:01:19.5]} 44... gxh5 {[%clk 0:01:39.4]} 45. Rd6 {[%clk 0:01:13.5]} 45... Ra7
{[%clk 0:01:39]} 46. a6 {[%clk 0:01:13.3]} 46... h4 {[%clk 0:01:38.4]} 47. Nf4
{[%clk 0:01:13.9]} 47... Ng5 {[%clk 0:01:36.1]} 48. Nh5+ {[%clk 0:01:00.6]}
48... Kh7 {[%clk 0:01:34]} 49. Nf6+ {[%clk 0:01:00.2]} 49... Kg7 {[%clk
0:01:32.8]} 50. Ng4 {[%clk 0:01:00.9]} 50... h3 {[%clk 0:01:31.3]} 51. Rb6
{[%clk 0:01:01.4]} 51... Re7 {[%clk 0:01:30.7]} 52. e5 {[%clk 0:01:01.8]} 52...
f5 {[%clk 0:01:30.5]} 53. Rb7 {[%clk 0:00:57]} 53... Kf8 {[%clk 0:01:07.5]} 54.
Rxe7 {[%clk 0:00:54.4]} 54... Kxe7 {[%clk 0:01:08.4]} 55. a7 {[%clk 0:00:54.8]}
55... fxg4 {[%clk 0:01:04.7]} 56. a8=Q {[%clk 0:00:54.6]} 56... g3 {[%clk
0:01:05.6]} 57. Qb7+ {[%clk 0:00:52.8]} 57... Kf8 {[%clk 0:01:05.7]} 58. Qc8+
{[%clk 0:00:52.1]} 58... Kg7 {[%clk 0:01:04.6]} 59. Qg4 {[%clk 0:00:52.7]} 59...
h2 {[%clk 0:00:54.9]} 60. Qxg5+ {[%clk 0:00:52.6]} 60... Kf8 {[%clk 0:00:55.4]}
61. Qf5+ {[%clk 0:00:52.4]} 61... Ke8 {[%clk 0:00:55.1]} 62. Qf3 {[%clk
0:00:53.3]} 1-0

[Event "*** SCC Grand Prix: Titled Tuesday Blitz"]
[Site "Chess.com"]
[Date "2020.09.29"]
[Round "1"]
[White "BikingBrian"]
[Black "Arkady_Gitelson"]
[Result "0-1"]
[WhiteElo "2205"]
[BlackElo "2537"]
[TimeControl "180+1"]
[EndTime "10:06:50 PDT"]
[Termination "Arkady_Gitelson won by resignation"]

1. d4 {[%clk 0:03:00.9]} 1... Nf6 {[%clk 0:02:59.2]} 2. Bg5 {[%clk 0:03:00]}
2... e6 {[%clk 0:02:59.6]} 3. Nd2 {[%clk 0:02:59.6]} 3... d5 {[%clk 0:02:59.2]}
4. e3 {[%clk 0:02:59.7]} 4... Be7 {[%clk 0:02:58.6]} 5. Bd3 {[%clk 0:02:59.9]}
5... O-O {[%clk 0:02:58.5]} 6. f4 {[%clk 0:03:00.2]} 6... h6 {[%clk 0:02:53.1]}
7. Bh4 {[%clk 0:02:59.7]} 7... c5 {[%clk 0:02:52.2]} 8. c3 {[%clk 0:02:59.6]}
8... Nc6 {[%clk 0:02:52]} 9. Ngf3 {[%clk 0:02:59.3]} 9... Ng4 {[%clk 0:02:50.2]}
10. Bxe7 {[%clk 0:02:55.2]} 10... Qxe7 {[%clk 0:02:51.1]} 11. Qe2 {[%clk
0:02:55]} 11... b6 {[%clk 0:02:46.5]} 12. h3 {[%clk 0:02:53.3]} 12... Nf6 {[%clk
0:02:45.7]} 13. Ne5 {[%clk 0:02:53.6]} 13... Bb7 {[%clk 0:02:45.3]} 14. Qf3
{[%clk 0:02:48.2]} 14... Qd6 {[%clk 0:02:32.5]} 15. O-O {[%clk 0:02:45.2]} 15...
Ne7 {[%clk 0:02:28.4]} 16. g4 {[%clk 0:02:36.9]} 16... Nd7 {[%clk 0:02:25.4]}
17. Qg3 {[%clk 0:02:23.5]} 17... f6 {[%clk 0:02:24.3]} 18. Ng6 {[%clk
0:02:20.5]} 18... Nxg6 {[%clk 0:02:23]} 19. Bxg6 {[%clk 0:02:21.4]} 19... Qe7
{[%clk 0:02:01.2]} 20. Qh4 {[%clk 0:02:18.9]} 20... Qd6 {[%clk 0:01:50.9]} 21.
g5 {[%clk 0:02:14.7]} 21... fxg5 {[%clk 0:01:47.3]} 22. fxg5 {[%clk 0:02:15.2]}
22... e5 {[%clk 0:01:47.2]} 23. Bf5 {[%clk 0:02:06.7]} 23... exd4 {[%clk
0:01:29.3]} 24. exd4 {[%clk 0:01:56.8]} 24... Ba6 {[%clk 0:01:02.8]} 25. Qg4
{[%clk 0:01:18.1]} 25... Bxf1 {[%clk 0:01:00.4]} 26. Rxf1 {[%clk 0:01:19]} 26...
Rad8 {[%clk 0:00:47.9]} 27. gxh6 {[%clk 0:01:17]} 27... Qxh6 {[%clk 0:00:42.6]}
28. Bxd7 {[%clk 0:01:12]} 28... Qxd2 {[%clk 0:00:40]} 29. Be6+ {[%clk
0:01:09.5]} 29... Kh8 {[%clk 0:00:39.4]} 30. Bf5 {[%clk 0:00:46.2]} 30... Qe3+
{[%clk 0:00:37.4]} 31. Kh1 {[%clk 0:00:41.7]} 31... Qh6 {[%clk 0:00:37]} 32. Rg1
{[%clk 0:00:37.4]} 32... Rd6 {[%clk 0:00:32.8]} 33. Bc2 {[%clk 0:00:32.8]} 33...
Rdf6 {[%clk 0:00:29.5]} 34. Rg2 {[%clk 0:00:26.6]} 34... Rf1+ {[%clk 0:00:27.7]}
35. Kh2 {[%clk 0:00:26.9]} 35... Qf4+ {[%clk 0:00:26.5]} 36. Qxf4 {[%clk
0:00:27.3]} 36... R8xf4 {[%clk 0:00:27.2]} 37. Bg6 {[%clk 0:00:26.4]} 37... R4f2
{[%clk 0:00:26.4]} 38. Kg3 {[%clk 0:00:26.6]} 38... Rxg2+ {[%clk 0:00:25.9]} 39.
Kxg2 {[%clk 0:00:27.5]} 39... Rd1 {[%clk 0:00:26.2]} 40. Bf7 {[%clk 0:00:25.2]}
40... cxd4 {[%clk 0:00:25.6]} 41. Bxd5 {[%clk 0:00:25.2]} 41... dxc3 {[%clk
0:00:24.8]} 0-1

[Event "*** SCC Grand Prix: Titled Tuesday Blitz"]
[Site "Chess.com"]
[Date "2020.09.29"]
[Round "1"]
[White "PSvidler"]
[Black "Gulkov_Igor"]
[Result "1-0"]
[WhiteElo "2945"]
[BlackElo "2443"]
[TimeControl "180+1"]
[EndTime "10:06:51 PDT"]
[Termination "PSvidler won on time"]

1. e4 {[%clk 0:02:59.4]} 1... c5 {[%clk 0:02:59.3]} 2. Nf3 {[%clk 0:02:59.1]}
2... d6 {[%clk 0:02:59.4]} 3. d4 {[%clk 0:02:59.1]} 3... cxd4 {[%clk 0:02:59.4]}
4. Nxd4 {[%clk 0:03:00]} 4... Nf6 {[%clk 0:02:59.6]} 5. Nc3 {[%clk 0:03:00.6]}
5... a6 {[%clk 0:02:59.9]} 6. f3 {[%clk 0:02:58]} 6... e5 {[%clk 0:02:59.1]} 7.
Nb3 {[%clk 0:02:57.9]} 7... Be6 {[%clk 0:02:58.8]} 8. Be3 {[%clk 0:02:57.9]}
8... Nbd7 {[%clk 0:02:57.9]} 9. Qd2 {[%clk 0:02:56.3]} 9... h5 {[%clk
0:02:56.7]} 10. O-O-O {[%clk 0:02:53.7]} 10... Rc8 {[%clk 0:02:52]} 11. Kb1
{[%clk 0:02:48.5]} 11... Qc7 {[%clk 0:02:42]} 12. h3 {[%clk 0:02:43.3]} 12... h4
{[%clk 0:02:34.4]} 13. Bd3 {[%clk 0:02:42.9]} 13... Be7 {[%clk 0:02:32.1]} 14.
f4 {[%clk 0:02:21.4]} 14... b5 {[%clk 0:02:14.5]} 15. Rhe1 {[%clk 0:02:14.1]}
15... Nb6 {[%clk 0:01:43.2]} 16. Bxb6 {[%clk 0:01:51.6]} 16... Qxb6 {[%clk
0:01:42.1]} 17. Nd5 {[%clk 0:01:52.1]} 17... Bxd5 {[%clk 0:01:26.6]} 18. exd5
{[%clk 0:01:51.9]} 18... Qc7 {[%clk 0:01:01.6]} 19. fxe5 {[%clk 0:01:10.5]}
19... dxe5 {[%clk 0:01:00.8]} 20. Qg5 {[%clk 0:01:10.6]} 20... O-O {[%clk
0:00:31.2]} 21. Rxe5 {[%clk 0:00:54.2]} 21... Nxd5 {[%clk 0:00:16.3]} 22. Qf5
{[%clk 0:00:43.9]} 22... g6 {[%clk 0:00:12.8]} 23. Qe4 {[%clk 0:00:44]} 23...
Nf6 {[%clk 0:00:07.1]} 24. Rxe7 {[%clk 0:00:43.9]} 24... Nxe4 {[%clk 0:00:04.3]}
25. Rxc7 {[%clk 0:00:43.7]} 25... Rxc7 {[%clk 0:00:04.9]} 26. Bxe4 {[%clk
0:00:43.8]} 26... Re8 {[%clk 0:00:05.6]} 27. Bf3 {[%clk 0:00:43.4]} 27... Kg7
{[%clk 0:00:04.5]} 28. c3 {[%clk 0:00:43.2]} 28... Rce7 {[%clk 0:00:03.6]} 29.
Rd6 {[%clk 0:00:41.7]} 29... Re6 {[%clk 0:00:02.9]} 30. Rd4 {[%clk 0:00:38.9]}
30... f5 {[%clk 0:00:02.6]} 31. Rxh4 {[%clk 0:00:37.2]} 31... Re1+ {[%clk
0:00:02]} 32. Kc2 {[%clk 0:00:37]} 32... Rg1 {[%clk 0:00:01.4]} 33. Rd4 {[%clk
0:00:36.6]} 33... g5 {[%clk 0:00:01.4]} 34. a4 {[%clk 0:00:35.9]} 1-0

[Event "*** SCC Grand Prix: Titled Tuesday Blitz"]
[Site "Chess.com"]
[Date "2020.09.29"]
[Round "1"]
[White "AliKa2810"]
[Black "MisiekZielony"]
[Result "1-0"]
[WhiteElo "2546"]
[BlackElo "2228"]
[TimeControl "180+1"]
[EndTime "10:06:52 PDT"]
[Termination "AliKa2810 won on time"]

1. d4 {[%clk 0:03:00.9]} 1... d5 {[%clk 0:02:59.5]} 2. c4 {[%clk 0:02:59.3]}
2... c6 {[%clk 0:02:59.4]} 3. Nf3 {[%clk 0:02:57.8]} 3... Nf6 {[%clk 0:02:59.3]}
4. Nc3 {[%clk 0:02:57.2]} 4... dxc4 {[%clk 0:02:58.1]} 5. a4 {[%clk 0:02:56.9]}
5... a5 {[%clk 0:02:57.7]} 6. e4 {[%clk 0:02:53.8]} 6... Bg4 {[%clk 0:02:56.6]}
7. Bxc4 {[%clk 0:02:53.4]} 7... e6 {[%clk 0:02:56.6]} 8. Be3 {[%clk 0:02:46.9]}
8... Bb4 {[%clk 0:02:56.1]} 9. h3 {[%clk 0:02:45.9]} 9... Bh5 {[%clk 0:02:54.8]}
10. Bd3 {[%clk 0:02:36.4]} 10... Nbd7 {[%clk 0:02:45.7]} 11. O-O {[%clk
0:02:36.1]} 11... Bg6 {[%clk 0:02:17]} 12. e5 {[%clk 0:02:27.8]} 12... Nd5
{[%clk 0:02:15.4]} 13. Bxg6 {[%clk 0:02:22.5]} 13... hxg6 {[%clk 0:02:03.5]} 14.
Bg5 {[%clk 0:01:44.5]} 14... f6 {[%clk 0:01:20.4]} 15. Qd3 {[%clk 0:01:33.7]}
15... Kf7 {[%clk 0:01:11.2]} 16. Ne4 {[%clk 0:01:27.9]} 16... Be7 {[%clk
0:01:06.4]} 17. Bd2 {[%clk 0:01:20.6]} 17... Qb6 {[%clk 0:01:00.2]} 18. Rae1
{[%clk 0:01:04.2]} 18... Rae8 {[%clk 0:00:54]} 19. Bc1 {[%clk 0:00:54.8]} 19...
Nf8 {[%clk 0:00:47.7]} 20. Nfd2 {[%clk 0:00:49.5]} 20... Qd8 {[%clk 0:00:24.7]}
21. Nc4 {[%clk 0:00:48.2]} 21... Kg8 {[%clk 0:00:11.1]} 22. Qg3 {[%clk
0:00:35.2]} 22... b6 {[%clk 0:00:04.2]} 23. Bd2 {[%clk 0:00:16.6]} 23... Qd7
{[%clk 0:00:02.9]} 24. Nc3 {[%clk 0:00:13.3]} 1-0

[Event "*** SCC Grand Prix: Titled Tuesday Blitz"]
[Site "Chess.com"]
[Date "2020.09.29"]
[Round "1"]
[White "GiorgianBarbosa"]
[Black "superchess02"]
[Result "1-0"]
[WhiteElo "2421"]
[BlackElo "2804"]
[TimeControl "180+1"]
[EndTime "10:06:53 PDT"]
[Termination "GiorgianBarbosa won by resignation"]

1. c4 {[%clk 0:03:00.9]} 1... Nf6 {[%clk 0:02:59.9]} 2. g3 {[%clk 0:02:58.9]}
2... e5 {[%clk 0:02:58.9]} 3. Bg2 {[%clk 0:02:56.4]} 3... Nc6 {[%clk 0:02:59.8]}
4. Nf3 {[%clk 0:02:52.5]} 4... g6 {[%clk 0:03:00]} 5. O-O {[%clk 0:02:46.2]}
5... Bg7 {[%clk 0:03:00.5]} 6. d4 {[%clk 0:02:46.7]} 6... e4 {[%clk 0:02:51]} 7.
Ne5 {[%clk 0:02:45.8]} 7... O-O {[%clk 0:02:44.3]} 8. Nc3 {[%clk 0:02:39.3]}
8... Nxe5 {[%clk 0:02:40.5]} 9. dxe5 {[%clk 0:02:37.7]} 9... Ng4 {[%clk
0:02:41.2]} 10. Nxe4 {[%clk 0:02:30.4]} 10... Nxe5 {[%clk 0:02:41]} 11. Bg5
{[%clk 0:02:11.9]} 11... f6 {[%clk 0:02:39.7]} 12. Qd5+ {[%clk 0:02:02.6]} 12...
Kh8 {[%clk 0:02:38.7]} 13. Be3 {[%clk 0:01:55.7]} 13... d6 {[%clk 0:02:29.9]}
14. b3 {[%clk 0:01:50.8]} 14... Qe7 {[%clk 0:02:21.6]} 15. Qd2 {[%clk
0:01:45.4]} 15... Bd7 {[%clk 0:02:13.6]} 16. Nc3 {[%clk 0:01:42.5]} 16... Bc6
{[%clk 0:02:13.9]} 17. Nd5 {[%clk 0:01:42.1]} 17... Qf7 {[%clk 0:02:12.5]} 18.
Bd4 {[%clk 0:01:40.1]} 18... Rfe8 {[%clk 0:02:07]} 19. e4 {[%clk 0:01:38.9]}
19... f5 {[%clk 0:02:04.8]} 20. exf5 {[%clk 0:01:33.7]} 20... gxf5 {[%clk
0:02:05.7]} 21. h3 {[%clk 0:01:25.9]} 21... f4 {[%clk 0:01:58.4]} 22. Qxf4
{[%clk 0:01:16.5]} 22... Qxf4 {[%clk 0:01:57.9]} 23. Nxf4 {[%clk 0:01:17.4]}
23... Nf3+ {[%clk 0:01:50.9]} 24. Bxf3 {[%clk 0:01:15.1]} 24... Bxd4 {[%clk
0:01:51.4]} 25. Bxc6 {[%clk 0:01:15]} 25... bxc6 {[%clk 0:01:50.6]} 26. Rad1
{[%clk 0:01:08]} 26... c5 {[%clk 0:01:48.1]} 27. Rfe1 {[%clk 0:00:56.7]} 27...
a5 {[%clk 0:01:47.5]} 28. Kg2 {[%clk 0:00:51.9]} 28... a4 {[%clk 0:01:46.4]} 29.
Rxe8+ {[%clk 0:00:48.5]} 29... Rxe8 {[%clk 0:01:47.3]} 30. b4 {[%clk 0:00:49]}
30... a3 {[%clk 0:01:37.9]} 31. b5 {[%clk 0:00:44.7]} 31... Ra8 {[%clk
0:01:31.5]} 32. Nd5 {[%clk 0:00:42.3]} 32... Ra4 {[%clk 0:01:28]} 33. Rc1 {[%clk
0:00:24.3]} 33... Rb4 {[%clk 0:01:28.1]} 34. Nxb4 {[%clk 0:00:21.6]} 34... cxb4
{[%clk 0:01:26.6]} 35. Rb1 {[%clk 0:00:21.5]} 35... Bb2 {[%clk 0:01:26.8]} 36.
Kf3 {[%clk 0:00:13.8]} 36... b3 {[%clk 0:01:24.3]} 37. axb3 {[%clk 0:00:14.7]}
37... a2 {[%clk 0:01:23.9]} 38. Rd1 {[%clk 0:00:14.9]} 38... a1=Q {[%clk
0:01:15]} 39. Rxa1 {[%clk 0:00:15]} 39... Bxa1 {[%clk 0:01:15.2]} 40. Ke4 {[%clk
0:00:15.5]} 40... Bc3 {[%clk 0:01:15.8]} 41. Kd5 {[%clk 0:00:14.4]} 41... Ba5
{[%clk 0:01:15.6]} 42. Kc6 {[%clk 0:00:13.3]} 42... Kg7 {[%clk 0:01:15.8]} 43.
b4 {[%clk 0:00:12.4]} 43... Bxb4 {[%clk 0:01:15.9]} 44. Kxc7 {[%clk 0:00:12.6]}
44... Kf6 {[%clk 0:01:16.6]} 45. b6 {[%clk 0:00:12.8]} 45... Ba5 {[%clk
0:01:17]} 46. Kc6 {[%clk 0:00:12.1]} 46... Ke5 {[%clk 0:01:17.2]} 47. b7 {[%clk
0:00:12.2]} 47... Kd4 {[%clk 0:01:16.9]} 48. b8=Q {[%clk 0:00:11.3]} 1-0

[Event "*** SCC Grand Prix: Titled Tuesday Blitz"]
[Site "Chess.com"]
[Date "2020.09.29"]
[Round "1"]
[White "Ladislav1969"]
[Black "fighter2jz"]
[Result "1-0"]
[WhiteElo "2359"]
[BlackElo "2645"]
[TimeControl "180+1"]
[EndTime "10:06:53 PDT"]
[Termination "Ladislav1969 won on time"]

1. e4 {[%clk 0:03:00.9]} 1... c5 {[%clk 0:02:59.4]} 2. c3 {[%clk 0:02:59.2]}
2... Nf6 {[%clk 0:02:58]} 3. e5 {[%clk 0:02:59.4]} 3... Nd5 {[%clk 0:02:58.4]}
4. d4 {[%clk 0:03:00.2]} 4... cxd4 {[%clk 0:02:56.8]} 5. Nf3 {[%clk 0:03:00.8]}
5... Nc6 {[%clk 0:02:56.5]} 6. Bc4 {[%clk 0:02:59.9]} 6... Nb6 {[%clk
0:02:55.8]} 7. Bb3 {[%clk 0:02:59.9]} 7... d5 {[%clk 0:02:55.6]} 8. exd6 {[%clk
0:02:59.8]} 8... Qxd6 {[%clk 0:02:36.9]} 9. O-O {[%clk 0:03:00.2]} 9... Bg4
{[%clk 0:02:31.7]} 10. Bxf7+ {[%clk 0:02:58.7]} 10... Kd8 {[%clk 0:02:31.1]} 11.
cxd4 {[%clk 0:02:20.6]} 11... e6 {[%clk 0:02:11.7]} 12. h3 {[%clk 0:02:20.5]}
12... Bf5 {[%clk 0:02:04.2]} 13. Bh5 {[%clk 0:02:15.5]} 13... Be7 {[%clk
0:01:38.1]} 14. Nc3 {[%clk 0:02:08.5]} 14... a6 {[%clk 0:01:35]} 15. Re1 {[%clk
0:01:59]} 15... Kc7 {[%clk 0:01:28]} 16. g3 {[%clk 0:01:50.9]} 16... Nd5 {[%clk
0:01:02.1]} 17. Ne5 {[%clk 0:01:23.1]} 17... Nxc3 {[%clk 0:00:30.7]} 18. bxc3
{[%clk 0:01:23]} 18... Nxe5 {[%clk 0:00:23.9]} 19. Rxe5 {[%clk 0:01:22.6]} 19...
Qc6 {[%clk 0:00:16.8]} 20. Bf4 {[%clk 0:01:19.2]} 20... Kb6 {[%clk 0:00:12.3]}
21. Be3 {[%clk 0:00:57.1]} 21... Kc7 {[%clk 0:00:08.6]} 22. Bf3 {[%clk
0:00:55.3]} 22... Qd7 {[%clk 0:00:06.7]} 23. Bf4 {[%clk 0:00:51.7]} 23... Kc8
{[%clk 0:00:07]} 24. Qb3 {[%clk 0:00:45.2]} 24... Ra7 {[%clk 0:00:03.2]} 25. Qb6
{[%clk 0:00:40.8]} 25... Ra8 {[%clk 0:00:02]} 26. d5 {[%clk 0:00:24.4]} 26... g5
{[%clk 0:00:02.3]} 27. dxe6 {[%clk 0:00:23.8]} 27... Qd3 {[%clk 0:00:01.7]} 28.
Rc5+ {[%clk 0:00:19.5]} 1-0

[Event "*** SCC Grand Prix: Titled Tuesday Blitz"]
[Site "Chess.com"]
[Date "2020.09.29"]
[Round "1"]
[White "malakismayil"]
[Black "Sven_Tica"]
[Result "0-1"]
[WhiteElo "2328"]
[BlackElo "2654"]
[TimeControl "180+1"]
[EndTime "10:06:54 PDT"]
[Termination "Sven_Tica won on time"]

1. e4 {[%clk 0:02:56.8]} 1... c5 {[%clk 0:03:00.5]} 2. Nf3 {[%clk 0:02:56]} 2...
Nf6 {[%clk 0:03:01.1]} 3. Nc3 {[%clk 0:02:52.2]} 3... d5 {[%clk 0:03:01]} 4.
Bb5+ {[%clk 0:02:48.5]} 4... Bd7 {[%clk 0:03:00.8]} 5. Bxd7+ {[%clk 0:02:47.4]}
5... Qxd7 {[%clk 0:03:01.7]} 6. exd5 {[%clk 0:02:45.9]} 6... Nxd5 {[%clk
0:03:02.6]} 7. O-O {[%clk 0:02:44.6]} 7... Nc6 {[%clk 0:03:02.4]} 8. Qe2 {[%clk
0:02:41.3]} 8... e6 {[%clk 0:02:54.7]} 9. Ne5 {[%clk 0:02:26.3]} 9... Nd4 {[%clk
0:02:17.9]} 10. Qh5 {[%clk 0:01:39.3]} 10... Nf6 {[%clk 0:02:04.5]} 11. Qd1
{[%clk 0:01:20]} 11... Qc7 {[%clk 0:02:03.5]} 12. Nf3 {[%clk 0:01:19.2]} 12...
Be7 {[%clk 0:01:54]} 13. d3 {[%clk 0:01:14.2]} 13... O-O {[%clk 0:01:53.2]} 14.
Be3 {[%clk 0:01:11.1]} 14... Rfd8 {[%clk 0:01:53.8]} 15. h3 {[%clk 0:01:01.5]}
15... a6 {[%clk 0:01:52.6]} 16. a4 {[%clk 0:01:00.1]} 16... Rac8 {[%clk
0:01:52.4]} 17. b3 {[%clk 0:00:54.6]} 17... Qc6 {[%clk 0:01:39.3]} 18. Ne5
{[%clk 0:00:50.4]} 18... Qc7 {[%clk 0:01:38.6]} 19. f4 {[%clk 0:00:47.1]} 19...
Nd5 {[%clk 0:01:29.8]} 20. Nxd5 {[%clk 0:00:43.9]} 20... Rxd5 {[%clk 0:01:30.7]}
21. Qd2 {[%clk 0:00:38.6]} 21... Bf6 {[%clk 0:01:29.8]} 22. Ng4 {[%clk
0:00:35.8]} 22... Bh4 {[%clk 0:01:22.8]} 23. Rac1 {[%clk 0:00:30.8]} 23... Nf5
{[%clk 0:01:13.4]} 24. Bf2 {[%clk 0:00:28.1]} 24... Be7 {[%clk 0:01:08.3]} 25.
Rfe1 {[%clk 0:00:22.3]} 25... h5 {[%clk 0:01:03.8]} 26. Ne5 {[%clk 0:00:21.2]}
26... Bf6 {[%clk 0:01:03.2]} 27. Nc4 {[%clk 0:00:19.6]} 27... b5 {[%clk
0:01:00.4]} 28. axb5 {[%clk 0:00:17.8]} 28... axb5 {[%clk 0:01:01.3]} 29. Ne3
{[%clk 0:00:18.3]} 29... Qxf4 {[%clk 0:00:59.9]} 30. Qe2 {[%clk 0:00:16.6]}
30... Nd4 {[%clk 0:00:58.2]} 31. Qf1 {[%clk 0:00:15.7]} 31... Rd7 {[%clk
0:00:55.2]} 32. Red1 {[%clk 0:00:04.1]} 32... Bh4 {[%clk 0:00:51.7]} 33. Re1
{[%clk 0:00:02.5]} 33... Ra8 {[%clk 0:00:43.8]} 34. Bxh4 {[%clk 0:00:01.8]}
34... Qxh4 {[%clk 0:00:44.7]} 35. Qf2 {[%clk 0:00:01.6]} 35... Qxf2+ {[%clk
0:00:43.2]} 36. Kxf2 {[%clk 0:00:02.5]} 36... Ra2 {[%clk 0:00:43.3]} 0-1

[Event "*** SCC Grand Prix: Titled Tuesday Blitz"]
[Site "Chess.com"]
[Date "2020.09.29"]
[Round "1"]
[White "Oleksandr_Bortnyk"]
[Black "JoliyRoger"]
[Result "0-1"]
[WhiteElo "2894"]
[BlackElo "2445"]
[TimeControl "180+1"]
[EndTime "10:06:58 PDT"]
[Termination "JoliyRoger won on time"]

1. e4 {[%clk 0:02:57.4]} 1... c6 {[%clk 0:02:56.1]} 2. d4 {[%clk 0:02:53.3]}
2... d5 {[%clk 0:02:55.1]} 3. Nc3 {[%clk 0:02:54.2]} 3... h6 {[%clk 0:02:54.6]}
4. Nf3 {[%clk 0:02:51]} 4... Bg4 {[%clk 0:02:53.8]} 5. Be2 {[%clk 0:02:40]} 5...
Nf6 {[%clk 0:02:52.7]} 6. e5 {[%clk 0:02:33]} 6... Nfd7 {[%clk 0:02:52.7]} 7. h3
{[%clk 0:02:31.8]} 7... Bxf3 {[%clk 0:02:52.8]} 8. Bxf3 {[%clk 0:02:32.7]} 8...
e6 {[%clk 0:02:53.6]} 9. Ne2 {[%clk 0:02:24.9]} 9... c5 {[%clk 0:02:54.1]} 10.
c3 {[%clk 0:02:25.8]} 10... Nc6 {[%clk 0:02:53.7]} 11. O-O {[%clk 0:02:25.8]}
11... Be7 {[%clk 0:02:54.1]} 12. Be3 {[%clk 0:02:22.1]} 12... O-O {[%clk
0:02:54]} 13. Nf4 {[%clk 0:01:50.9]} 13... cxd4 {[%clk 0:02:45.1]} 14. cxd4
{[%clk 0:01:44.4]} 14... Bg5 {[%clk 0:02:43.7]} 15. Qd2 {[%clk 0:01:37.5]} 15...
Qb6 {[%clk 0:02:41.7]} 16. Rfd1 {[%clk 0:01:34.2]} 16... Na5 {[%clk 0:02:34.3]}
17. b3 {[%clk 0:01:01.2]} 17... Rac8 {[%clk 0:02:33]} 18. g3 {[%clk 0:00:54.1]}
18... Rc7 {[%clk 0:02:01.5]} 19. h4 {[%clk 0:00:47.4]} 19... Bxf4 {[%clk
0:01:56.7]} 20. Bxf4 {[%clk 0:00:48.3]} 20... Rfc8 {[%clk 0:01:56.9]} 21. Bxh6
{[%clk 0:00:38.4]} 21... gxh6 {[%clk 0:01:55.9]} 22. Qxh6 {[%clk 0:00:39.3]}
22... Rc3 {[%clk 0:01:39.9]} 23. Be2 {[%clk 0:00:38.8]} 23... Qd8 {[%clk
0:01:33.9]} 24. Bd3 {[%clk 0:00:36.8]} 24... Nf8 {[%clk 0:01:32.9]} 25. Kg2
{[%clk 0:00:30.4]} 25... Nc6 {[%clk 0:01:20.5]} 26. Qf4 {[%clk 0:00:30.4]} 26...
Qe7 {[%clk 0:00:45.5]} 27. Qg4+ {[%clk 0:00:20.1]} 27... Kh8 {[%clk 0:00:45.4]}
28. Qh5+ {[%clk 0:00:20.4]} 28... Kg8 {[%clk 0:00:45.9]} 29. Qg4+ {[%clk
0:00:21]} 29... Kh8 {[%clk 0:00:43.8]} 30. Qh5+ {[%clk 0:00:13.4]} 30... Kg7
{[%clk 0:00:43.3]} 31. Qg4+ {[%clk 0:00:13.5]} 31... Kh6 {[%clk 0:00:30.4]} 32.
Qg8 {[%clk 0:00:10.6]} 32... f5 {[%clk 0:00:24.8]} 0-1